bitfinex/quotes_BTCUSD_20250127
["timestamp","ask_amount","ask_price","bid_price","bid_amount"]
[1737972809231,0.51063535,99247.0,99246.0,0.154139]
[1737972810408,0.51063535,99247.0,99246.0,0.003]
[1737972810823,0.51063535,99247.0,99246.0,0.154139]
[1737972811235,0.51063535,99247.0,99246.0,0.003]
[1737972811454,1.09543241,99247.0,99246.0,0.003]
[1737972811657,0.151141,99245.0,99229.0,0.151165]
[1737972811884,0.5038,99245.0,99244.0,0.151142]
[1737972813051,0.5038,99245.0,99231.0,0.201549]
[1737972813256,0.5038,99245.0,99244.0,0.153142]
[1737972813478,0.5038,99245.0,99237.0,0.151152]
[1737972813683,0.151156,99235.0,99225.0,0.0004918]
[1737972813895,0.5038,99235.0,99227.0,0.151167]
[1737972814021,0.654956,99235.0,99225.0,0.0004918]
[1737972814449,0.654956,99235.0,99225.0,0.1516628]
[1737972814652,0.5038,99235.0,99225.0,0.0004918]
[1737972814846,0.654956,99235.0,99225.0,0.0004918]
[1737972815057,0.01883971,99234.0,99225.0,0.1516618]
[1737972815322,0.52917874,99234.0,99225.0,0.0004918]
[1737972815671,0.52917874,99234.0,99231.0,0.001]
[1737972815878,0.01883971,99233.0,99231.0,0.001]
[1737972816077,0.52917774,99233.0,99231.0,0.001]
[1737972816281,0.52917774,99233.0,99227.0,0.5]
[1737972816979,0.01883971,99232.0,99227.0,0.5]
[1737972817186,0.01883971,99232.0,99231.0,0.002]
[1737972817389,0.67379971,99232.0,99231.0,0.002]
[1737972817599,0.65496,99232.0,99231.0,0.002]
[1737972817819,0.75570856,99232.0,99231.0,0.002]
[1737972818039,0.94202033,99232.0,99231.0,0.002]
[1737972818242,1.03936762,99232.0,99231.0,0.002]
[1737972818445,0.151167,99228.0,99227.0,0.5]
[1737972818652,0.654967,99228.0,99227.0,0.503]
[1737972819070,0.654967,99228.0,99227.0,0.5]
[1737972819705,0.67381556,99228.0,99227.0,0.5]
[1737972819928,0.67381556,99228.0,99227.0,0.502]
[1737972821273,0.67381556,99228.0,99227.0,0.497]
[1737972821682,0.70396498,99228.0,99227.0,0.497]
[1737972822138,0.87724572,99228.0,99227.0,0.497]
[1737972823184,0.87724572,99228.0,99227.0,0.496]
[1737972823616,0.87724572,99228.0,99227.0,0.499]
[1737972823829,1.14759301,99228.0,99227.0,0.498]
[1737972824044,1.22299301,99228.0,99227.0,0.498]
[1737972824253,1.22299301,99228.0,99227.0,0.499]
[1737972824697,1.07299301,99228.0,99227.0,0.496]
[1737972825957,0.87724572,99228.0,99227.0,0.495]
[1737972826391,0.87824572,99228.0,99227.0,0.495]
[1737972828386,0.87580872,99228.0,99227.0,0.495]
[1737972829693,0.86583975,99228.0,99227.0,0.495]
[1737972830142,1.17089704,99228.0,99227.0,0.495]
[1737972830349,1.32732997,99228.0,99227.0,0.495]
[1737972831240,1.26581997,99228.0,99227.0,0.495]
[1737972832570,1.26781997,99228.0,99227.0,0.495]
[1737972832970,1.26781997,99228.0,99227.0,0.4951416]
[1737972833207,1.26611733,99228.0,99227.0,0.4951416]
[1737972833416,1.26811733,99228.0,99227.0,0.4951416]
[1737972833857,1.26611733,99228.0,99227.0,0.4951416]
[1737972834292,1.26811733,99228.0,99227.0,0.4951416]
[1737972835201,1.14391733,99228.0,99227.0,0.4951416]
[1737972835414,0.99391733,99228.0,99227.0,0.4951416]
[1737972836909,0.99191733,99228.0,99227.0,0.4951416]
[1737972837384,0.99291733,99228.0,99227.0,0.4951416]
[1737972837812,0.87257004,99228.0,99227.0,0.4951416]
[1737972839459,0.84242062,99228.0,99227.0,0.4951416]
[1737972840340,0.84056585,99228.0,99227.0,0.4951416]
[1737972840550,0.84300285,99228.0,99227.0,0.4951416]
[1737972841634,1.04535014,99228.0,99227.0,0.4951416]
[1737972841855,1.09405014,99228.0,99227.0,0.4951416]
[1737972842061,1.27419753,99228.0,99227.0,0.4951416]
[1737972842276,1.27319753,99228.0,99227.0,0.4971416]
[1737972842493,1.27319753,99228.0,99227.0,0.4951416]
[1737972842731,1.27419753,99228.0,99227.0,0.4951416]
[1737972843200,1.27319753,99228.0,99227.0,0.4951416]
[1737972844025,1.27419753,99228.0,99227.0,0.4951416]
[1737972845326,1.27419753,99228.0,99227.0,0.44975326]
[1737972846389,1.22520158,99228.0,99227.0,0.44975326]
[1737972847458,1.24407169,99228.0,99227.0,0.44975326]
[1737972848290,1.22520158,99228.0,99227.0,0.44975326]
[1737972850280,1.24408162,99228.0,99227.0,0.44975326]
[1737972857466,1.35491517,99228.0,99227.0,0.29715705]
[1737972857679,1.31459162,99228.0,99227.0,0.0608342]
[1737972857890,0.414678,99227.0,99226.0,8e-07]
[1737972858054,0.414678,99227.0,99216.0,0.00029736]
[1737972858055,0.301183,99217.0,99216.0,0.00029736]
[1737972858254,0.92533029,99217.0,99216.0,1e-08]
[1737972858726,0.92988617,99217.0,99216.0,1e-08]
[1737972858883,0.94876621,99217.0,99216.0,1e-08]
[1737972859731,1.01027621,99217.0,99216.0,1e-08]
[1737972859848,0.99139617,99217.0,99216.0,1e-08]
[1737972860294,1.01163812,99217.0,99216.0,1e-08]
[1737972860714,1.17494989,99217.0,99216.0,1e-08]
[1737972861553,1.17594989,99217.0,99216.0,1e-08]
[1737972862174,1.19481969,99217.0,99216.0,1e-08]
[1737972862586,1.20510363,99217.0,99216.0,1e-08]
[1737972864068,1.20410363,99217.0,99216.0,1e-08]
[1737972864498,1.20610363,99217.0,99216.0,1e-08]
[1737972865051,1.20310363,99217.0,99216.0,1e-08]
[1737972865232,1.20510363,99217.0,99216.0,1e-08]
[1737972865450,1.20710363,99217.0,99216.0,1e-08]
[1737972865797,1.20510363,99217.0,99216.0,1e-08]
[1737972866035,1.20710363,99217.0,99216.0,1e-08]
[1737972867675,1.18823383,99217.0,99216.0,1e-08]
[1737972868299,0.95748188,99217.0,99216.0,1e-08]
[1737972869084,0.95548188,99217.0,99216.0,1e-08]
[1737972869447,0.95648188,99217.0,99216.0,1e-08]
[1737972869866,0.95548188,99217.0,99216.0,1e-08]
[1737972870265,0.95448188,99217.0,99216.0,1e-08]
[1737972870696,0.974346,99217.0,99216.0,1e-08]
[1737972871107,0.95548188,99217.0,99216.0,1e-08]
[1737972871315,0.95448188,99217.0,99216.0,1e-08]
[1737972871534,0.95548188,99217.0,99216.0,1e-08]
[1737972871736,1.29479188,99217.0,99216.0,1e-08]
[1737972871941,1.31479188,99217.0,99216.0,1e-08]
[1737972872154,1.33365604,99217.0,99216.0,1e-08]
[1737972872364,0.151231,99186.0,99180.0,0.075]
[1737972872569,0.93869006,99186.0,99180.0,0.075]
[1737972872816,0.94321822,99186.0,99180.0,0.075]
[1737972873220,0.96208238,99186.0,99180.0,0.075]
[1737972873812,0.96208238,99186.0,99185.0,0.00044503]
[1737972874487,1.17259238,99186.0,99185.0,0.00044503]
[1737972874695,1.15239855,99186.0,99185.0,0.00044503]
[1737972874907,1.15239855,99186.0,99185.0,0.00144503]
[1737972875761,1.15339855,99186.0,99185.0,0.00044503]
[1737972875972,1.15639855,99186.0,99185.0,0.00044503]
[1737972876178,0.173,99185.0,99167.0,0.00029736]
[1737972876354,0.174258,99168.0,99167.0,0.00029736]
[1737972876560,0.77540529,99168.0,99167.0,0.00029736]
[1737972876974,0.77991001,99168.0,99167.0,0.00029736]
[1737972877789,0.82895805,99168.0,99167.0,0.00029736]
[1737972878190,0.82895805,99168.0,99167.0,0.00129736]
[1737972878609,0.99226982,99168.0,99167.0,0.00129736]
[1737972879012,0.99226982,99168.0,99167.0,0.00529736]
[1737972880069,0.99226982,99168.0,99167.0,0.00129736]
[1737972880506,0.99226982,99168.0,99167.0,0.00229736]
[1737972880722,1.00220722,99168.0,99167.0,0.00229736]
[1737972880933,1.00220722,99168.0,99167.0,0.00129736]
[1737972882327,1.00220722,99168.0,99167.0,0.00029736]
[1737972884369,0.99226982,99168.0,99167.0,0.00029736]
[1737972885160,0.96208594,99168.0,99167.0,0.00029736]
[1737972885388,0.84173865,99168.0,99167.0,0.00029736]
[1737972885723,0.84173865,99168.0,99167.0,0.08179736]
[1737972886455,0.84173865,99168.0,99167.0,0.08279736]
[1737972886900,0.69048065,99168.0,99167.0,0.08279736]
[1737972887320,0.69048065,99168.0,99167.0,0.08179736]
[1737972887958,0.67161649,99168.0,99167.0,0.08179736]
[1737972888777,0.67161649,99168.0,99167.0,0.08279736]
[1737972889011,0.82287449,99168.0,99167.0,0.08379736]
[1737972889228,0.67161649,99168.0,99167.0,0.08279736]
[1737972889419,0.67161649,99168.0,99167.0,0.08179736]
[1737972889660,0.67161649,99168.0,99167.0,0.08479736]
[1737972890457,0.67161649,99168.0,99167.0,0.08179736]
[1737972890668,0.67161649,99168.0,99167.0,0.08279736]
[1737972890867,0.67161649,99168.0,99167.0,0.08579736]
[1737972891282,0.67161649,99168.0,99167.0,0.08479736]
[1737972891664,0.67161649,99168.0,99167.0,0.08579736]
[1737972892094,0.67161649,99168.0,99167.0,0.08279736]
[1737972892423,0.67161649,99168.0,99167.0,0.08679736]
[1737972892619,0.67161649,99168.0,99167.0,0.08179736]
[1737972893030,0.67161649,99168.0,99167.0,0.08579736]
[1737972893580,0.50830472,99168.0,99167.0,0.08579736]
[1737972894094,0.50830472,99168.0,99167.0,0.53430365]
[1737972894297,0.5038,99168.0,99167.0,0.54453764]
[1737972894511,0.50827169,99168.0,99167.0,0.54453764]
[1737972895150,0.50827169,99168.0,99167.0,0.53953764]
[1737972895381,0.50827169,99168.0,99167.0,0.54253764]
[1737972895616,0.50927169,99168.0,99167.0,0.54953764]
[1737972895871,0.32066769,99168.0,99167.0,2.07974593]
[1737972896078,0.17586,99168.0,99167.0,2.62578693]
[1737972896779,0.17586,99168.0,99167.0,2.20249893]
[1737972897078,0.17586,99168.0,99167.0,2.06674593]
[1737972897292,0.17586,99168.0,99167.0,0.56674593]
[1737972897502,0.17586,99168.0,99167.0,0.54853764]
[1737972897939,0.17586,99168.0,99167.0,0.54653764]
[1737972898151,0.17586,99168.0,99167.0,0.54953764]
[1737972898300,0.17486,99168.0,99167.0,0.54253764]
[1737972898508,0.17486,99168.0,99167.0,0.55053764]
[1737972898711,0.17486,99168.0,99167.0,0.54753764]
[1737972898960,0.17486,99168.0,99167.0,0.39529035]
[1737972899193,0.17486,99168.0,99167.0,0.00229736]
[1737972899415,0.17941159,99168.0,99167.0,0.00229736]
[1737972899832,0.0725197,99168.0,99167.0,0.00229736]
[1737972900217,0.0725197,99168.0,99167.0,0.00729736]
[1737972900434,0.0725197,99168.0,99167.0,0.15655636]
[1737972900650,0.0725197,99168.0,99167.0,0.15756467]
[1737972900850,0.06796811,99168.0,99167.0,0.15955636]
[1737972901270,0.06796811,99168.0,99167.0,0.00529736]
[1737972901413,0.06796811,99168.0,99167.0,0.15155636]
[1737972901622,0.0724491,99168.0,99167.0,0.15355636]
[1737972901821,0.06796811,99168.0,99167.0,0.00229736]
[1737972902024,0.21922611,99168.0,99167.0,0.00029736]
[1737972902227,0.2237071,99168.0,99167.0,0.00029736]
[1737972902428,0.2237071,99168.0,99167.0,0.00629736]
[1737972902634,0.2237071,99168.0,99167.0,0.00029736]
[1737972903492,0.34405439,99168.0,99167.0,0.00029736]
[1737972903624,0.34405439,99168.0,99167.0,0.00529736]
[1737972904059,0.301281,99153.0,99150.0,0.00029757]
[1737972904281,0.4419268,99153.0,99150.0,0.00029757]
[1737972905101,0.2689268,99153.0,99150.0,0.00029757]
[1737972905313,0.28776238,99153.0,99150.0,0.00029757]
[1737972905527,0.28876238,99153.0,99152.0,0.00044555]
[1737972905744,0.40910967,99153.0,99152.0,0.00044555]
[1737972906348,0.39027409,99153.0,99152.0,0.00044555]
[1737972906545,0.4003231,99153.0,99152.0,0.00044555]
[1737972907157,0.0734458,99153.0,99152.0,0.00044555]
[1737972907367,0.0724458,99153.0,99152.0,0.00044555]
[1737972907572,0.09127205,99153.0,99152.0,0.00044555]
[1737972907776,0.09327205,99153.0,99152.0,0.00044555]
[1737972908197,0.09127205,99153.0,99152.0,0.15172755]
[1737972908399,0.09127205,99153.0,99152.0,0.00044555]
[1737972909013,0.08679436,99153.0,99152.0,0.00044555]
[1737972909368,0.24447271,99153.0,99152.0,0.00044555]
[1737972909929,0.24447271,99153.0,99152.0,0.00144555]
[1737972910128,0.09319171,99153.0,99152.0,0.00144555]
[1737972910524,0.24447271,99153.0,99152.0,0.00144555]
[1737972910907,0.09319171,99153.0,99152.0,0.00144555]
[1737972911501,0.09119171,99153.0,99152.0,0.00044555]
[1737972911935,0.08679436,99153.0,99152.0,0.00144555]
[1737972912123,0.09119995,99153.0,99152.0,0.00144555]
[1737972916372,0.09119995,99153.0,99152.0,0.15272755]
[1737972916576,0.08679436,99153.0,99152.0,0.15272755]
[1737972918054,0.08679436,99153.0,99152.0,0.00044555]
[1737972918274,0.08679436,99153.0,99152.0,0.00144555]
[1737972918487,0.08679436,99153.0,99152.0,0.15272755]
[1737972920633,0.08679436,99153.0,99152.0,0.00144555]
[1737972920846,0.23807536,99153.0,99152.0,0.00144555]
[1737972921049,0.08679436,99153.0,99152.0,0.00144555]
[1737972921260,0.09122565,99153.0,99152.0,0.00144555]
[1737972922010,0.09122565,99153.0,99152.0,0.15272755]
[1737972922211,0.09122565,99153.0,99152.0,0.23202755]
[1737972922410,0.09122565,99153.0,99152.0,0.00144555]
[1737972922616,0.09122565,99153.0,99152.0,0.15272755]
[1737972922790,0.09122565,99153.0,99152.0,0.00144555]
[1737972923616,0.24250665,99153.0,99152.0,0.00144555]
[1737972923794,0.29240665,99153.0,99152.0,0.00144555]
[1737972924512,0.1712379,99153.0,99152.0,0.00144555]
[1737972924656,0.1712379,99153.0,99152.0,0.00044555]
[1737972925072,0.1712379,99153.0,99152.0,0.00144555]
[1737972925499,0.29240665,99153.0,99152.0,0.00044555]
[1737972925702,0.29240665,99153.0,99152.0,0.00144555]
[1737972927994,0.29240665,99153.0,99152.0,0.00044555]
[1737972928417,0.29240665,99153.0,99152.0,0.00144555]
[1737972928655,0.41275394,99153.0,99152.0,0.00144555]
[1737972929953,0.47326394,99153.0,99152.0,0.00144555]
[1737972931087,0.47326394,99153.0,99152.0,0.00044555]
[1737972931307,0.49018894,99153.0,99152.0,0.00044555]
[1737972931871,0.48818894,99153.0,99152.0,0.00044555]
[1737972932078,0.42767894,99153.0,99152.0,0.00044555]
[1737972932285,0.41448918,99153.0,99152.0,0.00044555]
[1737972933134,0.47499918,99153.0,99152.0,0.00044555]
[1737972933361,0.49192418,99153.0,99152.0,0.00044555]
[1737972933954,0.48992418,99153.0,99152.0,0.00044555]
[1737972934161,0.49192418,99153.0,99152.0,0.00044555]
[1737972934726,0.48992418,99153.0,99152.0,0.00044555]
[1737972934930,0.42941418,99153.0,99152.0,0.00044555]
[1737972935155,0.41648918,99153.0,99152.0,0.00044555]
[1737972935579,0.39348918,99153.0,99152.0,0.00044555]
[1737972936411,0.39148918,99153.0,99152.0,0.00044555]
[1737972936822,0.39348918,99153.0,99152.0,0.00044555]
[1737972937264,0.09296089,99153.0,99152.0,0.00044555]
[1737972937456,0.09296089,99153.0,99152.0,0.15172755]
[1737972937677,0.09296089,99153.0,99152.0,0.23282755]
[1737972938313,0.08679436,99153.0,99152.0,0.23282755]
[1737972939763,0.06796811,99153.0,99152.0,0.38282755]
[1737972939977,0.06796811,99153.0,99152.0,0.52287484]
[1737972940194,0.06796811,99153.0,99152.0,0.52387484]
[1737972940422,3.6e-07,99167.0,99166.0,0.383161]
[1737972940639,3.6e-07,99167.0,99166.0,0.48050829]
[1737972940855,3.6e-07,99167.0,99166.0,0.49050829]
[1737972941098,3.6e-07,99167.0,99166.0,0.51111381]
[1737972941522,3.6e-07,99167.0,99166.0,0.48050829]
[1737972941736,3.6e-07,99167.0,99166.0,0.49065345]
[1737972941997,3.6e-07,99167.0,99166.0,0.383161]
[1737972942201,0.50420036,99167.0,99166.0,0.301261]
[1737972942410,0.50420036,99167.0,99166.0,0.151261]
[1737972942616,0.51050732,99167.0,99166.0,0.160261]
[1737972942831,0.51050732,99167.0,99156.0,0.0811]
[1737972943045,0.51050732,99167.0,99166.0,0.013]
[1737972943255,0.51050732,99167.0,99166.0,0.164261]
[1737972943463,0.51050732,99167.0,99166.0,0.004]
[1737972943707,0.51050732,99167.0,99164.0,0.151264]
[1737972943912,0.51050732,99167.0,99166.0,0.001]
[1737972944337,0.68476632,99167.0,99166.0,0.001]
[1737972944546,0.53350732,99167.0,99152.0,0.00044555]
[1737972944754,0.53350732,99167.0,99156.0,0.151275]
[1737972944974,0.53350732,99167.0,99158.0,0.151272]
[1737972945192,0.53350732,99167.0,99152.0,0.00044555]
[1737972945386,0.51050732,99167.0,99166.0,0.154261]
[1737972945590,0.51050732,99167.0,99166.0,0.151261]
[1737972946452,0.51050732,99167.0,99166.0,0.152261]
[1737972947070,0.51050732,99167.0,99166.0,0.153261]
[1737972947493,0.51050732,99167.0,99166.0,0.154261]
[1737972947936,0.51050732,99167.0,99166.0,0.153261]
[1737972948178,0.51050732,99167.0,99166.0,0.154261]
[1737972948441,0.51050732,99167.0,99166.0,0.152261]
[1737972948867,0.51050732,99167.0,99166.0,0.156261]
[1737972949704,0.51050732,99167.0,99166.0,0.152261]
[1737972949933,0.51050732,99167.0,99166.0,0.154261]
[1737972950140,0.51050732,99167.0,99166.0,0.155261]
[1737972950995,0.51050732,99167.0,99166.0,0.154261]
[1737972951197,0.51050732,99167.0,99166.0,0.155261]
[1737972951583,0.51050732,99167.0,99166.0,0.152261]
[1737972951728,0.51050732,99167.0,99166.0,0.154261]
[1737972952133,0.51050732,99167.0,99166.0,0.151261]
[1737972952332,0.51050732,99167.0,99166.0,0.154261]
[1737972953191,0.51050732,99167.0,99166.0,0.151261]
[1737972953395,0.51050732,99167.0,99166.0,0.152261]
[1737972953595,0.51050732,99167.0,99166.0,0.153261]
[1737972953932,0.51050732,99167.0,99166.0,0.152261]
[1737972954958,0.51050732,99167.0,99166.0,0.151261]
[1737972955137,0.51050732,99167.0,99166.0,0.152261]
[1737972955529,0.51050732,99167.0,99166.0,0.151261]
[1737972955741,0.51050732,99167.0,99166.0,0.152261]
[1737972956581,0.51050732,99167.0,99166.0,0.001]
[1737972956962,0.73056632,99167.0,99166.0,0.001]
[1737972957172,0.82791361,99167.0,99166.0,0.001]
[1737972957371,0.83787279,99167.0,99166.0,0.001]
[1737972957975,0.151275,99157.0,99156.0,0.0001416]
[1737972958199,0.77582229,99157.0,99156.0,0.0001416]
[1737972958413,0.78207506,99157.0,99156.0,0.0001416]
[1737972958752,0.90657506,99157.0,99156.0,0.0001416]
[1737972959288,1.08869657,99157.0,99156.0,0.0001416]
[1737972959482,1.08869657,99157.0,99156.0,0.0011416]
[1737972959890,1.08869657,99157.0,99156.0,0.0001416]
[1737972961127,1.08869657,99157.0,99156.0,0.0021416]
[1737972961731,1.06569657,99157.0,99156.0,0.0031416]
[1737972962168,0.78992157,99157.0,99156.0,0.0031416]
[1737972962382,0.69257428,99157.0,99156.0,0.0031416]
[1737972962969,0.69257428,99157.0,99156.0,0.1524176]
[1737972963403,0.68632151,99157.0,99156.0,0.1514176]
[1737972963612,0.67370971,99157.0,99156.0,0.1514176]
[1737972963829,0.6925361,99157.0,99156.0,0.1514176]
[1737972964215,0.6935361,99157.0,99156.0,0.1514176]
[1737972964421,0.6935361,99157.0,99156.0,0.0001416]
[1737972964842,0.6925361,99157.0,99156.0,0.0001416]
[1737972965173,0.6925361,99157.0,99156.0,0.0021416]
[1737972965372,0.6925361,99157.0,99156.0,0.1524176]
[1737972966447,0.6925361,99157.0,99156.0,0.0011416]
[1737972966654,0.6925361,99157.0,99156.0,0.0001416]
[1737972969039,0.8668111,99157.0,99156.0,0.0001416]
[1737972969239,1.01025839,99157.0,99156.0,0.0001416]
[1737972969629,1.07076839,99157.0,99156.0,0.0001416]
[1737972970615,1.09125257,99157.0,99156.0,0.0001416]
[1737972971008,1.12139906,99157.0,99156.0,0.0001416]
[1737972971462,1.12239906,99157.0,99156.0,0.0011416]
[1737972971948,1.12239906,99157.0,99156.0,0.0001416]
[1737972972862,1.27139906,99157.0,99156.0,0.0001416]
[1737972973334,0.515302,99146.0,99145.0,0.00882201]
[1737972973576,0.361823,99132.0,99131.0,7e-05]
[1737972973839,0.69408206,99132.0,99131.0,7e-05]
[1737972974057,1.19828206,99132.0,99131.0,0.00056259]
[1737972974246,1.20444633,99132.0,99131.0,0.00056259]
[1737972974678,1.19290921,99132.0,99131.0,0.00056259]
[1737972975348,1.21876338,99132.0,99131.0,0.00156259]
[1737972975908,1.29486338,99132.0,99131.0,0.00156259]
[1737972976107,1.30514629,99132.0,99131.0,0.00156259]
[1737972976599,1.33144362,99132.0,99131.0,0.00156259]
[1737972976869,0.301319,99128.0,99127.0,0.0001416]
[1737972977116,1.19656164,99128.0,99127.0,0.0001416]
[1737972977352,1.28806164,99128.0,99127.0,0.0001416]
[1737972977777,0.433836,99117.0,99078.0,0.151395]
[1737972977988,0.433836,99117.0,99074.0,0.201867]
[1737972977989,1.08423746,99117.0,99074.0,0.201867]
[1737972978201,1.08423746,99117.0,99074.0,0.151401]
[1737972978405,1.09036954,99117.0,99074.0,0.151401]
[1737972978812,1.13934242,99117.0,99070.0,0.201876]
[1737972979234,1.27298704,99117.0,99064.0,0.201888]
[1737972979448,1.17563975,99117.0,99064.0,0.201888]
[1737972980060,1.17563975,99117.0,99069.0,0.201878]
[1737972980274,1.17663975,99117.0,99061.0,0.201894]
[1737972980481,1.17663975,99117.0,99060.0,0.201896]
[1737972980899,1.18895893,99117.0,99067.0,0.2020247]
[1737972981101,1.18595893,99117.0,99070.0,0.151406]
[1737972981313,0.01,99115.0,99072.0,0.151404]
[1737972981531,0.174377,99091.0,99070.0,0.151407]
[1737972981749,0.023,99089.0,99070.0,0.151407]
[1737972981962,0.023,99087.0,99070.0,0.151407]
[1737972982162,0.023,99085.0,99068.0,0.15141]
[1737972982377,0.023,99083.0,99069.0,0.151409]
[1737972982639,0.62454729,99083.0,99069.0,0.151409]
[1737972982831,0.023,99081.0,99067.0,0.0001417]
[1737972983153,0.5272,99081.0,99067.0,0.1515537]
[1737972983388,0.0472,99074.0,99067.0,0.0001417]
[1737972983592,0.42175829,99068.0,99067.0,0.0001417]
[1737972983832,0.92595829,99068.0,99067.0,0.0001417]
[1737972984006,0.93195301,99068.0,99067.0,0.0001417]
[1737972984413,0.96097384,99068.0,99067.0,0.0021417]
[1737972984626,0.98092589,99068.0,99067.0,0.0001417]
[1737972984884,1.00994672,99068.0,99067.0,0.0001417]
[1737972985126,1.00994672,99068.0,99011.0,0.201996]
[1737972985127,0.301427,99057.0,99011.0,0.201996]
[1737972985335,0.97177429,99057.0,99011.0,0.201996]
[1737972985542,1.00079512,99057.0,99011.0,0.201996]
[1737972985756,0.97776901,99057.0,99011.0,0.201996]
[1737972985975,0.97776901,99057.0,99016.0,0.1516307]
[1737972986202,0.97776901,99057.0,99029.0,0.151469]
[1737972986465,0.97776901,99057.0,99017.0,0.201985]
[1737972986701,1.01053322,99057.0,99016.0,0.0001417]
[1737972986908,0.299266,99032.0,99016.0,0.0001417]
[1737972987112,1.05081329,99032.0,99016.0,0.0001417]
[1737972987521,1.05680801,99032.0,99016.0,0.0001417]
[1737972987956,1.10578089,99032.0,99016.0,0.0001417]
[1737972988166,0.151489,99017.0,99016.0,0.0001417]
[1737972988387,0.151489,99017.0,99016.0,0.00063697]
[1737972988388,0.97163629,99017.0,99016.0,0.00063697]
[1737972988807,0.97763101,99017.0,99016.0,0.00063697]
[1737972989016,0.98787524,99017.0,99016.0,0.00063697]
[1737972989228,1.03684812,99017.0,99016.0,0.00063697]
[1737972989438,0.90712646,99017.0,99016.0,0.00063697]
[1737972989648,0.87660389,99017.0,99016.0,0.00063697]
[1737972989867,0.5591676,99017.0,99016.0,0.00063697]
[1737972990076,0.5591676,99017.0,99016.0,0.15212697]
[1737972990299,0.5651676,99017.0,99016.0,0.15312697]
[1737972990743,0.5651676,99017.0,99016.0,0.15212697]
[1737972990954,0.5671676,99017.0,99016.0,0.15212697]
[1737972991164,0.5691676,99017.0,99016.0,0.15212697]
[1737972991375,0.51219472,99017.0,99016.0,0.15212697]
[1737972991578,0.51019472,99017.0,99016.0,0.15212697]
[1737972991805,0.51119472,99017.0,99016.0,0.15712697]
[1737972992903,0.51119472,99017.0,99016.0,0.00563697]
[1737972993118,0.51119472,99017.0,99016.0,0.15712697]
[1737972993320,0.51019472,99017.0,99016.0,0.00063697]
[1737972993526,0.51019472,99017.0,99016.0,0.00763697]
[1737972993947,0.53319472,99017.0,99016.0,0.00263697]
[1737972994156,0.53319472,99017.0,99016.0,0.00363697]
[1737972994157,0.68468372,99017.0,99016.0,0.00363697]
[1737972994591,0.53319472,99017.0,99016.0,0.00263697]
[1737972994806,0.53319472,99017.0,99016.0,0.00363697]
[1737972995025,0.53319472,99017.0,99016.0,0.00163697]
[1737972995244,0.55859999,99017.0,99016.0,0.00163697]
[1737972995483,0.55859999,99017.0,99016.0,0.15312697]
[1737972996101,0.55859999,99017.0,99016.0,0.40047426]
[1737972996308,0.55859999,99017.0,99016.0,0.47957426]
[1737972996526,0.5042,99017.0,99016.0,0.47957426]
[1737972996755,0.5042,99017.0,99016.0,0.47857426]
[1737972996975,0.51099992,99017.0,99016.0,1.98357426]
[1737972997179,0.50999992,99017.0,99016.0,1.97857426]
[1737972997388,0.50999992,99017.0,99016.0,1.98057426]
[1737972997617,0.51099992,99017.0,99016.0,1.98857426]
[1737972997816,0.51099992,99017.0,99016.0,1.97857426]
[1737972998272,0.51199992,99017.0,99016.0,0.48957426]
[1737972998481,0.50999992,99017.0,99016.0,0.48157426]
[1737972999514,0.50999992,99017.0,99016.0,0.47857426]
[1737972999717,0.50999992,99017.0,99016.0,0.48157426]
[1737972999916,0.51099992,99017.0,99016.0,0.49057426]
[1737973000158,0.51099992,99017.0,99016.0,0.5006975]
[1737973000371,0.50999992,99017.0,99016.0,0.4886975]
[1737973000787,0.50999992,99017.0,99016.0,0.4916975]
[1737973000996,0.50999992,99017.0,99016.0,0.38422697]
[1737973001329,0.51099992,99017.0,99016.0,0.39022697]
[1737973001535,0.50999992,99017.0,99016.0,0.47857426]
[1737973001739,0.42920392,99017.0,99016.0,0.50857426]
[1737973001966,0.36526359,99017.0,99016.0,0.50857426]
[1737973002158,0.21737766,99017.0,99016.0,0.98155626]
[1737973002358,0.00029779,99031.0,99016.0,0.98155626]
[1737973002359,0.00029779,99031.0,99030.0,0.181469]
[1737973002589,0.02978786,99055.0,99054.0,0.151432]
[1737973002921,0.53455786,99055.0,99054.0,0.151432]
[1737973003147,0.53455786,99055.0,99050.0,0.151438]
[1737973003325,0.53455786,99055.0,99020.0,0.22466086]
[1737973003326,0.5400146,99055.0,99032.0,0.01992259]
[1737973003532,0.5400146,99055.0,99044.0,0.151446]
[1737973003768,0.01872405,99054.0,99031.0,0.605868]
[1737973003955,0.52349405,99054.0,99045.0,0.151445]
[1737973004319,0.00545674,99053.0,99050.0,0.004]
[1737973004514,0.55892903,99053.0,99051.0,0.151436]
[1737973004698,0.55892903,99053.0,99052.0,0.151435]
[1737973005333,0.55892903,99053.0,99044.0,0.00014823]
[1737973005334,0.55347229,99053.0,99049.0,0.151439]
[1737973005723,0.54392903,99053.0,99046.0,0.151443]
[1737973005952,0.54392903,99053.0,99050.0,0.001]
[1737973006751,0.01872405,99052.0,99050.0,0.001]
[1737973006966,0.01872405,99052.0,99050.0,0.152437]
[1737973007159,0.52349405,99052.0,99050.0,0.001]
[1737973007523,0.00545674,99051.0,99050.0,0.001]
[1737973007750,0.51022674,99051.0,99049.0,0.151439]
[1737973007957,0.52895079,99051.0,99049.0,0.001]
[1737973008343,0.52895079,99051.0,99050.0,0.151438]
[1737973009491,0.52895079,99051.0,99047.0,0.151442]
[1737973009711,0.52895079,99051.0,99048.0,0.141441]
[1737973010264,0.52895079,99051.0,99050.0,0.151438]
[1737973010600,0.51022674,99051.0,99050.0,0.151438]
[1737973011028,0.51022674,99051.0,99050.0,0.152438]
[1737973011238,0.51022674,99051.0,99050.0,1.652438]
[1737973011409,0.51022674,99051.0,99050.0,1.89978529]
[1737973011608,0.51052453,99051.0,99050.0,1.89978529]
[1737973012254,0.51052453,99051.0,99050.0,1.90378529]
[1737973012406,0.51052453,99051.0,99050.0,1.89978529]
[1737973012812,0.51052453,99051.0,99050.0,1.90378529]
[1737973013204,0.51052453,99051.0,99050.0,0.40278529]
[1737973013413,0.52932223,99051.0,99050.0,0.41508961]
[1737973013945,0.51052453,99051.0,99050.0,0.41508961]
[1737973014916,0.51052453,99051.0,99050.0,0.42508961]
[1737973015083,0.51052453,99051.0,99050.0,0.44508961]
[1737973015299,0.51052453,99051.0,99050.0,0.41508961]
[1737973015832,0.51052453,99051.0,99050.0,0.307438]
[1737973016040,0.51052453,99051.0,99050.0,0.303438]
[1737973016259,0.55938045,99051.0,99050.0,0.301438]
[1737973016459,0.55938045,99051.0,99050.0,0.305438]
[1737973017007,0.56038045,99051.0,99050.0,0.310438]
[1737973017243,0.56038045,99051.0,99050.0,0.311438]
[1737973017486,0.53031527,99051.0,99050.0,0.311438]
[1737973018477,0.52931527,99051.0,99050.0,0.302438]